[Event "WSTCC-50 2020"]
[Site "Prague"]
[Date "2020.03.06"]
[Round "1.8"]
[White "Koehler, Gerhard"]
[Black "Fink-Nunn, Petra"]
[Result "1-0"]
[ECO "D59"]
[WhiteElo "2204"]
[BlackElo "1983"]
[Annotator "ChessBase"]
[PlyCount "89"]
[EventDate "2020.03.06"]
[EventType "team-tourn"]
[EventCountry "CZE"]
[SourceTitle "playchess.com"]
[Source "ChessBase"]
[SourceQuality "1"]
[TimeControl "40/5400+30:1800+30"]

1. c4 {[%emt 0:00:00]} e6 {[%emt 0:00:00]} 2. Nc3 {[%emt 0:00:00]} d5 {[%emt 0:00:00]} 3. d4 {[%emt 0:00:08]} Be7 {[%emt 0:00:02]} 4. Nf3 {[%emt 0:00:33]} Nf6 {[%emt 0:00:09]} 5. Bg5 {[%emt 0:00:13]} h6 {[%emt 0:00:22]} 6. Bh4 {[%emt 0:01:37]} O-O {[%emt 0:00:13]} 7. e3 {[%emt 0:00:19]} b6 {[%emt 0:00:10]} 8. cxd5 {[%emt 0:01:02]} Nxd5 {[%emt 0:00:20]} 9. Bxe7 {[%emt 0:00:37]} Qxe7 {[%emt 0:00:19]} 10. Nxd5 {[%emt 0:01:54]} exd5 {[%emt 0:00:07]} 11. Bd3 {[%emt 0:00:23]} Be6 {[%emt 0:04:32]} 12. O-O {[%emt 0:00:20]} c5 {[%emt 0:03:55]} 13. dxc5 {[%emt 0:00:51]} bxc5 {[%emt 0:00:22]} 14. Rc1 {[%emt 0:00:13]} Nd7 {[%emt 0:01:25]} 15. Bb1 {[%emt 0:00:39]} Rfd8 {[%emt 0:06:27]} 16. Qd3 {[%emt 0:06:21]} g6 {[%emt 0:05:26]} 17. Qa3 {[%emt 0:01:51]} Qf6 {[%emt 0:13:39]} 18. e4 {[%emt 0:09:24]} d4 {[%emt 0:04:22]} 19. Nd2 {[%emt 0:00:35]} g5 {[%emt 0:24:03]} 20. Rfe1 {[%emt 0:13:06]} Qf4 {[%emt 0:05:26]} 21. Red1 {[%emt 0:15:18]} h5 {[%emt 0:12:28]} 22. g3 {[%emt 0:15:40]} Qf6 {[%emt 0:02:04]} 23. f4 {[%emt 0:04:54]} gxf4 {[%emt 0:05:37]} 24. Rf1 {[%emt 0:00:56]} Qg5 {[%emt 0:00:06]} 25. Rxf4 {[%emt 0:01:15]} Rab8 {[%emt 0:01:44]} 26. Nf3 {[%emt 0:01:46]} Qg7 {[%emt 0:00:01]} 27. b3 {[%emt 0:00:41]} Rb7 {[%emt 0:00:20]} 28. Qa5 {[%emt 0:07:16]} Rc8 {[%emt 0:01:20]} 29. Bd3 {[%emt 0:01:54]} Rcb8 30. Qd2 {[%emt 0:02:14]} Rb4 {[%emt 0:04:24]} 31. Rf1 {[%emt 0:03:20]} a5 {[%emt 0:00:09]} 32. Nh4 {[%emt 0:02:32]} a4 {[%emt 0:00:22]} 33. Nf5 {[%emt 0:00:13]} Qh7 {[%emt 0:04:00]} 34. e5 {[%emt 0:01:51]} Kh8 {[%emt 0:01:11]} 35. Qe2 {[%emt 0:03:03]} axb3 {[%emt 0:01:19]} 36. Nd6 {[%emt 0:00:34]} Qg7 {[%emt 0:00:28]} 37. Qxh5+ {[%emt 0:00:37]} Kg8 {[%emt 0:00:02]} 38. Nxf7 {[%emt 0:00:28]} bxa2 {[%emt 0:01:31]} 39. Nh6+ {[%emt 0:00:33]} Kh8 {[%emt 0:00:06]} 40. Nf7+ {[%emt 0:00:00]} Kg8 {[%emt 0:00:00]} 41. Ng5 {[%emt 0:09:52]} Bc4 {[%emt 0:16:27]} 42. Bh7+ {[%emt 0:02:47]} Kh8 {[%emt 0:00:03]} 43. Nf7+ {[%emt 0:02:28]} Bxf7 {[%emt 0:00:40]} 44. Rxf7 {[%emt 0:00:06]} Nf6 {[%emt 0:09:00]} 45. exf6 {[%emt 0:01:04]} 1-0

[Event "WSTCC-50 2020"]
[Site "Prague"]
[Date "2020.03.06"]
[Round "1.12"]
[White "Lawrence, Paul"]
[Black "Konopka, Michal"]
[Result "0-1"]
[ECO "D85"]
[WhiteElo "1894"]
[BlackElo "2353"]
[Annotator "ChessBase"]
[PlyCount "78"]
[EventDate "2020.03.06"]
[EventType "team-tourn"]
[EventCountry "CZE"]
[SourceTitle "playchess.com"]
[Source "ChessBase"]
[SourceQuality "1"]
[TimeControl "40/5400+30:1800+30"]

1. c4 {[%emt 0:00:00]} Nf6 {[%emt 0:00:52]} 2. Nc3 {[%emt 0:00:00]} g6 {[%emt 0:04:18]} 3. d4 {[%emt 0:01:25]} d5 {[%emt 0:00:15]} 4. cxd5 {[%emt 0:03:43]} Nxd5 {[%emt 0:02:59]} 5. Nf3 {[%emt 0:04:56]} Bg7 {[%emt 0:00:12]} 6. e4 {[%emt 0:05:58]} Nxc3 {[%emt 0:06:49]} 7. bxc3 {[%emt 0:00:07]} c5 {[%emt 0:00:31]} 8. Bb5+ {[%emt 0:06:12]} Nc6 {[%emt 0:06:29]} 9. O-O {[%emt 0:05:19]} O-O {[%emt 0:03:22]} 10. Bxc6 {[%emt 0:09:29]} bxc6 {[%emt 0:00:24]} 11. h3 {[%emt 0:01:46]} Qa5 {[%emt 0:14:47]} 12. Be3 {[%emt 0:09:28]} Rd8 {[%emt 0:02:19]} 13. Qc2 {[%emt 0:07:59]} cxd4 {[%emt 0:08:43]} 14. cxd4 {[%emt 0:00:37]} Qh5 {[%emt 0:00:17]} 15. Ne5 {[%emt 0:12:58]} Bxe5 {[%emt 0:05:32]} 16. dxe5 {[%emt 0:00:17]} Qxe5 {[%emt 0:00:28]} 17. Qxc6 {[%emt 0:01:31]} Bd7 {[%emt 0:00:33]} 18. Qb7 {[%emt 0:09:00]} Bb5 {[%emt 0:11:50]} 19. Rfd1 {[%emt 0:02:16]} a6 {[%emt 0:00:23]} 20. Rac1 {[%emt 0:03:58]} Rab8 {[%emt 0:10:54]} 21. Rxd8+ {[%emt 0:04:31]} Rxd8 {[%emt 0:00:08]} 22. Qb6 {[%emt 0:01:03]} Qd6 {[%emt 0:09:49]} 23. Qxd6 {[%emt 0:01:30]} Rxd6 {[%emt 0:01:28]} 24. Bh6 {[%emt 0:01:02]} f6 {[%emt 0:02:50]} 25. Rc8+ {[%emt 0:02:10]} Kf7 {[%emt 0:00:07]} 26. f4 {[%emt 0:02:22]} Rd4 {[%emt 0:02:12]} 27. f5 {[%emt 0:00:41]} Be8 {[%emt 0:00:06]} 28. Ra8 {[%emt 0:00:35]} Rxe4 {[%emt 0:01:44]} 29. fxg6+ {[%emt 0:00:12]} Kxg6 {[%emt 0:00:22]} 30. Rxe8 {[%emt 0:01:12]} Kxh6 {[%emt 0:00:08]} 31. Ra8 {[%emt 0:00:04]} Ra4 {[%emt 0:00:18]} 32. Re8 {[%emt 0:01:07]} e5 {[%emt 0:00:18]} 33. Re6 {[%emt 0:00:13]} Kg6 {[%emt 0:00:15]} 34. h4 {[%emt 0:01:10]} Rxa2 {[%emt 0:01:47]} 35. g4 {[%emt 0:00:28]} h6 {[%emt 0:01:03]} 36. Re8 {[%emt 0:00:14]} Ra4 {[%emt 0:00:25]} 37. h5+ {[%emt 0:01:26]} Kf7 {[%emt 0:00:26]} 38. Rh8 {[%emt 0:00:24]} Rxg4+ {[%emt 0:00:11]} 39. Kf2 {[%emt 0:00:04]} Rg5 {[%emt 0:01:03]} 0-1

[Event "WSTCC-50 2020"]
[Site "Prague"]
[Date "2020.03.06"]
[Round "1.20"]
[White "Bradac, Roman"]
[Black "Petran, Peter"]
[Result "0-1"]
[ECO "A40"]
[WhiteElo "1974"]
[BlackElo "2268"]
[Annotator "ChessBase"]
[PlyCount "76"]
[EventDate "2020.03.06"]
[EventType "team-tourn"]
[EventCountry "CZE"]
[SourceTitle "playchess.com"]
[Source "ChessBase"]
[SourceQuality "1"]
[TimeControl "40/5400+30:1800+30"]

1. d4 {[%emt 0:00:00]} g6 {[%emt 0:00:00]} 2. Nf3 {[%emt 0:00:00]} Bg7 {[%emt 0:00:00]} 3. Bf4 {[%emt 0:00:24]} d6 {[%emt 0:00:00]} 4. c4 {[%emt 0:00:48]} Nd7 {[%emt 0:00:42]} 5. Nc3 {[%emt 0:01:30]} e5 {[%emt 0:00:10]} 6. Bg5 {[%emt 0:04:41]} Ngf6 {[%emt 0:01:23]} 7. h3 {[%emt 0:01:39]} h6 {[%emt 0:01:13]} 8. Be3 {[%emt 0:04:13]} c6 {[%emt 0:00:39]} 9. dxe5 {[%emt 0:03:51]} dxe5 {[%emt 0:00:06]} 10. g3 {[%emt 0:15:14]} Qe7 {[%emt 0:00:23]} 11. Bg2 {[%emt 0:00:29]} Qb4 {[%emt 0:06:09]} 12. Qb3 {[%emt 0:07:20]} a5 {[%emt 0:00:12]} 13. O-O {[%emt 0:00:48]} O-O {[%emt 0:02:11]} 14. Nd2 {[%emt 0:05:13]} Re8 {[%emt 0:00:17]} 15. a3 {[%emt 0:01:42]} Qe7 {[%emt 0:03:26]} 16. Qc2 {[%emt 0:01:19]} Nf8 {[%emt 0:04:08]} 17. c5 {[%emt 0:02:40]} Be6 {[%emt 0:05:04]} 18. Nde4 {[%emt 0:06:52]} Nxe4 {[%emt 0:07:17]} 19. Nxe4 {[%emt 0:01:07]} a4 {[%emt 0:00:16]} 20. Rac1 {[%emt 0:09:59]} Red8 {[%emt 0:00:47]} 21. Nd6 {[%emt 0:02:44]} Bb3 {[%emt 0:01:25]} 22. Qd2 {[%emt 0:00:48]} Kh7 {[%emt 0:01:01]} 23. Qb4 {[%emt 0:07:02]} Rab8 {[%emt 0:00:19]} 24. Nc4 {[%emt 0:17:04]} Ne6 {[%emt 0:01:49]} 25. Be4 {[%emt 0:03:01]} Nd4 {[%emt 0:00:55]} 26. Rfe1 {[%emt 0:00:01]} f5 {[%emt 0:00:47]} 27. Bb1 {[%emt 0:00:38]} Qf7 {[%emt 0:08:55]} 28. Bd2 {[%emt 0:00:57]} Nb5 {[%emt 0:02:36]} 29. Ne3 {[%emt 0:00:51]} e4 {[%emt 0:01:47]} 30. Bc3 {[%emt 0:00:02]} Nxc3 {[%emt 0:00:40]} 31. bxc3 {[%emt 0:00:02]} Bf8 {[%emt 0:01:25]} 32. Bc2 {[%emt 0:02:06]} Be6 {[%emt 0:07:06]} 33. Bxa4 {[%emt 0:00:02]} b6 {[%emt 0:00:21]} 34. Qb2 {[%emt 0:01:17]} Bxc5 {[%emt 0:00:58]} 35. Bxc6 {[%emt 0:00:13]} Qc7 {[%emt 0:00:27]} 36. Bb5 {[%emt 0:00:46]} Bxe3 {[%emt 0:00:44]} 37. fxe3 {[%emt 0:00:01]} Qxg3+ {[%emt 0:00:10]} 38. Kf1 {[%emt 0:00:29]} f4 {[%emt 0:00:24]} 0-1

[Event "WSTCC-50 2020"]
[Site "Prague"]
[Date "2020.03.06"]
[Round "1.27"]
[White "Goriatchkin, Jouri"]
[Black "Arnhold, Kerstin"]
[Result "1-0"]
[ECO "E06"]
[WhiteElo "2310"]
[BlackElo "1979"]
[Annotator "ChessBase"]
[PlyCount "66"]
[EventDate "2020.03.06"]
[EventType "team-tourn"]
[EventCountry "CZE"]
[SourceTitle "playchess.com"]
[Source "ChessBase"]
[SourceQuality "1"]
[TimeControl "40/5400+30:1800+30"]

1. d4 {[%emt 0:00:00]} Nf6 {[%emt 0:00:00]} 2. c4 {[%emt 0:00:00]} e6 {[%emt 0:00:23]} 3. g3 {[%emt 0:00:08]} Be7 {[%emt 0:00:53]} 4. Bg2 {[%emt 0:00:22]} d5 {[%emt 0:01:09]} 5. Nf3 {[%emt 0:00:39]} c6 {[%emt 0:00:57]} 6. O-O {[%emt 0:01:50]} O-O {[%emt 0:00:19]} 7. Nc3 {[%emt 0:01:54]} Nbd7 {[%emt 0:01:38]} 8. b3 {[%emt 0:02:00]} Rb8 {[%emt 0:06:01]} 9. Bf4 {[%emt 0:02:19]} Ra8 {[%emt 0:00:06]} 10. Qc2 {[%emt 0:05:06]} Nh5 {[%emt 0:04:25]} 11. Bc1 {[%emt 0:00:56]} f5 {[%emt 0:05:40]} 12. Bb2 {[%emt 0:01:18]} Ndf6 {[%emt 0:02:59]} 13. Rad1 {[%emt 0:04:16]} Ne4 {[%emt 0:07:29]} 14. Nxe4 {[%emt 0:02:05]} fxe4 {[%emt 0:00:23]} 15. Ne5 {[%emt 0:00:37]} Bd6 {[%emt 0:09:04]} 16. f3 {[%emt 0:07:46]} exf3 {[%emt 0:04:17]} 17. exf3 {[%emt 0:00:50]} Qg5 {[%emt 0:03:20]} 18. f4 {[%emt 0:01:44]} Qe7 {[%emt 0:00:55]} 19. Qe2 {[%emt 0:04:44]} Nf6 {[%emt 0:01:33]} 20. g4 {[%emt 0:02:28]} Nd7 {[%emt 0:05:15]} 21. Nd3 {[%emt 0:07:31]} Qf7 {[%emt 0:05:00]} 22. Rde1 Nb8 23. Ne5 {[%emt 0:04:53]} Qc7 {[%emt 0:08:17]} 24. g5 {[%emt 0:05:09]} Na6 {[%emt 0:04:52]} 25. Bh3 {[%emt 0:05:25]} Nb4 {[%emt 0:06:36]} 26. a3 {[%emt 0:08:20]} Bxe5 {[%emt 0:00:16]} 27. fxe5 {[%emt 0:00:28]} Na6 {[%emt 0:00:44]} 28. Rxf8+ {[%emt 0:00:30]} Kxf8 {[%emt 0:00:02]} 29. Qh5 {[%emt 0:13:50]} Qe7 {[%emt 0:00:21]} 30. Qxh7 {[%emt 0:03:10]} Qxg5+ {[%emt 0:00:08]} 31. Kh1 {[%emt 0:00:28]} Qh6 {[%emt 0:07:20]} 32. Rf1+ {[%emt 0:00:20]} Ke7 {[%emt 0:00:49]} 33. Qg8 {[%emt 0:00:30]} Nb8 1-0

[Event "WSTCC-50 2020"]
[Site "Prague"]
[Date "2020.03.06"]
[Round "1.30"]
[White "Vokac, Marek"]
[Black "Klaiss, Thomas"]
[Result "1-0"]
[ECO "A20"]
[WhiteElo "2348"]
[BlackElo "1991"]
[Annotator "ChessBase"]
[PlyCount "85"]
[EventDate "2020.03.06"]
[EventType "team-tourn"]
[EventCountry "CZE"]
[SourceTitle "playchess.com"]
[Source "ChessBase"]
[SourceQuality "1"]
[TimeControl "40/5400+30:1800+30"]

1. c4 e5 2. g3 Nf6 3. Bg2 Nc6 4. Nc3 Bb4 5. Nd5 O-O 6. e3 Re8 7. Ne2 a6 8. O-O Bf8 9. d3 Rb8 10. b3 d6 11. Bb2 Nd7 12. f4 Ne7 13. f5 Nxd5 14. cxd5 c6 15. Nc3 cxd5 16. Nxd5 Nf6 17. Rc1 Nxd5 18. Bxd5 Qa5 19. e4 Be7 20. Qh5 Rf8 21. Rc2 Bd7 22. g4 Bc6 23. Bxc6 bxc6 24. g5 f6 25. g6 h6 26. Bc1 Rb7 27. Rxc6 Rd8 28. Qe2 d5 29. Qc2 Rbd7 30. Be3 Rb8 31. Rc1 Ba3 32. Rc8+ Rd8 33. Rxb8 Rxb8 34. Qc7 Qxc7 35. Rxc7 d4 36. Bd2 Ra8 37. Ba5 Bd6 38. Rc6 Be7 39. Kf1 Kf8 40. Ke2 Ke8 41. Kd1 Ra7 42. Rc8+ Kd7 43. Rg8 1-0

[Event "WSTCC-50 2020"]
[Site "Prague"]
[Date "2020.03.06"]
[Round "1.31"]
[White "Mueller, Thomas"]
[Black "Polasek, Jaroslav"]
[Result "0-1"]
[ECO "C01"]
[WhiteElo "2025"]
[BlackElo "2365"]
[Annotator "ChessBase"]
[PlyCount "48"]
[EventDate "2020.03.06"]
[EventType "team-tourn"]
[EventCountry "CZE"]
[SourceTitle "playchess.com"]
[Source "ChessBase"]
[SourceQuality "1"]
[TimeControl "40/5400+30:1800+30"]

1. d4 {[%emt 0:00:00]} e6 {[%emt 0:00:00]} 2. e4 {[%emt 0:00:10]} d5 {[%emt 0:00:00]} 3. exd5 {[%emt 0:00:09]} exd5 {[%emt 0:00:00]} 4. Bd3 {[%emt 0:00:10]} Bd6 {[%emt 0:00:16]} 5. Nc3 {[%emt 0:00:37]} c6 {[%emt 0:01:05]} 6. Nge2 {[%emt 0:01:13]} Qf6 {[%emt 0:05:33]} 7. Be3 {[%emt 0:06:56]} Ne7 {[%emt 0:11:33]} 8. Qd2 {[%emt 0:12:05]} Bf5 {[%emt 0:00:17]} 9. Bg5 {[%emt 0:06:59]} Qg6 {[%emt 0:02:52]} 10. Bxe7 {[%emt 0:04:54]} Kxe7 {[%emt 0:04:22]} 11. Bxf5 {[%emt 0:04:52]} Qxf5 {[%emt 0:00:05]} 12. O-O {[%emt 0:01:49]} Kd7 {[%emt 0:03:46]} 13. Ng3 {[%emt 0:05:08]} Qg6 {[%emt 0:01:22]} 14. Nce2 {[%emt 0:03:05]} h5 {[%emt 0:05:17]} 15. h4 {[%emt 0:08:51]} Na6 {[%emt 0:08:50]} 16. Rfe1 {[%emt 0:09:26]} Rae8 {[%emt 0:05:38]} 17. Qg5 {[%emt 0:09:28]} Qxg5 {[%emt 0:01:43]} 18. hxg5 {[%emt 0:00:01]} Nb4 {[%emt 0:00:07]} 19. Rac1 {[%emt 0:01:36]} Nxa2 {[%emt 0:01:47]} 20. Ra1 {[%emt 0:06:39]} Nb4 {[%emt 0:00:10]} 21. Rxa7 {[%emt 0:01:15]} Kc7 {[%emt 0:01:03]} 22. Kf1 {[%emt 0:02:01]} Bxg3 {[%emt 0:03:58]} 23. Nxg3 {[%emt 0:03:05]} Rxe1+ {[%emt 0:00:04]} 24. Kxe1 {[%emt 0:00:02]} Nxc2+ {[%emt 0:00:06]} 0-1

[Event "WSTCC-50 2020"]
[Site "Prague"]
[Date "2020.03.06"]
[Round "1.35"]
[White "Wolf, Volker"]
[Black "Baerthel, Klaus"]
[Result "1-0"]
[ECO "A38"]
[WhiteElo "2278"]
[BlackElo "1875"]
[Annotator "ChessBase"]
[PlyCount "61"]
[EventDate "2020.03.06"]
[EventType "team-tourn"]
[EventCountry "CZE"]
[SourceTitle "playchess.com"]
[Source "ChessBase"]
[SourceQuality "1"]
[TimeControl "40/5400+30:1800+30"]

1. Nf3 {[%emt 0:00:00]} Nf6 {[%emt 0:00:16]} 2. g3 {[%emt 0:00:13]} c5 {[%emt 0:01:51]} 3. Bg2 {[%emt 0:00:18]} Nc6 {[%emt 0:01:00]} 4. c4 {[%emt 0:01:11]} g6 {[%emt 0:01:56]} 5. O-O {[%emt 0:01:48]} Bg7 {[%emt 0:00:09]} 6. Nc3 {[%emt 0:02:11]} O-O {[%emt 0:00:24]} 7. d3 {[%emt 0:01:58]} d6 {[%emt 0:06:38]} 8. Bg5 {[%emt 0:03:53]} Rb8 {[%emt 0:11:25]} 9. Qd2 {[%emt 0:01:47]} a6 {[%emt 0:01:11]} 10. Bh6 {[%emt 0:01:48]} Nd4 {[%emt 0:10:11]} 11. Bxg7 {[%emt 0:09:38]} Nxf3+ {[%emt 0:01:34]} 12. Bxf3 {[%emt 0:00:45]} Kxg7 {[%emt 0:00:12]} 13. a3 {[%emt 0:01:05]} Bd7 {[%emt 0:05:53]} 14. b4 {[%emt 0:01:15]} b6 {[%emt 0:01:54]} 15. Rfb1 {[%emt 0:01:32]} Qc7 {[%emt 0:04:02]} 16. Ra2 {[%emt 0:04:37]} Rfc8 {[%emt 0:09:01]} 17. Rab2 {[%emt 0:07:23]} e6 {[%emt 0:08:42]} 18. Rb3 {[%emt 0:03:22]} d5 {[%emt 0:22:20]} 19. cxd5 {[%emt 0:10:31]} c4 {[%emt 0:01:19]} 20. dxc4 {[%emt 0:01:38]} Qxc4 {[%emt 0:00:27]} 21. e3 {[%emt 0:03:49]} exd5 {[%emt 0:04:11]} 22. Be2 {[%emt 0:04:12]} Qc6 {[%emt 0:04:06]} 23. b5 {[%emt 0:07:56]} Qe6 {[%emt 0:01:29]} 24. bxa6 {[%emt 0:01:16]} Bc6 {[%emt 0:00:45]} 25. Qd4 {[%emt 0:00:15]} Kg8 {[%emt 0:00:18]} 26. Rxb6 {[%emt 0:01:27]} Ra8 {[%emt 0:00:19]} 27. Bb5 {[%emt 0:06:13]} Nd7 {[%emt 0:00:40]} 28. Rxc6 {[%emt 0:00:22]} Rxc6 {[%emt 0:00:07]} 29. Bxc6 {[%emt 0:00:06]} Qxc6 {[%emt 0:00:31]} 30. Nxd5 {[%emt 0:00:13]} Qd6 {[%emt 0:01:26]} 31. Nb6 1-0

[Event "WSTCC-50 2020"]
[Site "Prague"]
[Date "2020.03.06"]
[Round "1.36"]
[White "Wendling, Jens"]
[Black "Polster, Wolfgang"]
[Result "0-1"]
[ECO "C00"]
[WhiteElo "1908"]
[BlackElo "2201"]
[Annotator "ChessBase"]
[PlyCount "64"]
[EventDate "2020.03.06"]
[EventType "team-tourn"]
[EventCountry "CZE"]
[SourceTitle "playchess.com"]
[Source "ChessBase"]
[SourceQuality "1"]
[TimeControl "40/5400+30:1800+30"]

1. e4 {[%emt 0:00:00]} e6 {[%emt 0:00:00]} 2. Qe2 {[%emt 0:00:00]} c5 {[%emt 0:01:23]} 3. g3 {[%emt 0:00:13]} Nc6 {[%emt 0:01:04]} 4. c3 {[%emt 0:00:29]} g6 {[%emt 0:05:16]} 5. Nf3 {[%emt 0:02:20]} Bg7 {[%emt 0:00:30]} 6. Bg2 {[%emt 0:00:50]} d6 {[%emt 0:01:05]} 7. O-O {[%emt 0:01:44]} Nge7 {[%emt 0:00:20]} 8. Na3 {[%emt 0:01:37]} O-O {[%emt 0:00:44]} 9. Re1 {[%emt 0:01:34]} a6 {[%emt 0:02:18]} 10. Nc2 {[%emt 0:02:27]} Qc7 {[%emt 0:05:04]} 11. d4 {[%emt 0:02:36]} cxd4 {[%emt 0:03:07]} 12. cxd4 {[%emt 0:01:17]} Bd7 {[%emt 0:01:06]} 13. Bf4 {[%emt 0:05:05]} Rac8 {[%emt 0:09:37]} 14. Rac1 {[%emt 0:03:48]} Qb8 {[%emt 0:03:43]} 15. Red1 {[%emt 0:03:48]} Rfd8 {[%emt 0:06:13]} 16. Nce1 {[%emt 0:09:03]} Na7 {[%emt 0:29:33]} 17. d5 {[%emt 0:19:01]} Rxc1 {[%emt 0:03:01]} 18. Bxc1 {[%emt 0:04:54]} exd5 {[%emt 0:01:14]} 19. exd5 {[%emt 0:01:47]} Re8 {[%emt 0:00:25]} 20. Qd2 {[%emt 0:02:47]} Qc7 {[%emt 0:06:03]} 21. Nc2 {[%emt 0:05:18]} Nac8 {[%emt 0:03:30]} 22. Ne3 {[%emt 0:01:09]} Nf5 {[%emt 0:01:01]} 23. Qb4 {[%emt 0:02:00]} a5 {[%emt 0:01:53]} 24. Qb3 {[%emt 0:04:47]} Nb6 {[%emt 0:02:25]} 25. Re1 {[%emt 0:04:46]} Nd4 {[%emt 0:02:45]} 26. Qd1 {[%emt 0:01:11]} Qc5 {[%emt 0:01:04]} 27. b3 {[%emt 0:00:46]} Nb5 {[%emt 0:01:51]} 28. a4 {[%emt 0:06:56]} Nc3 {[%emt 0:02:28]} 29. Qd3 {[%emt 0:01:38]} Ncxd5 {[%emt 0:01:10]} 30. Rd1 {[%emt 0:01:19]} Bc6 {[%emt 0:01:07]} 31. Ba3 {[%emt 0:06:47]} Qxa3 {[%emt 0:00:23]} 32. Nxd5 {[%emt 0:00:09]} Nxd5 {[%emt 0:00:38]} 0-1

[Event "WSTCC-50 2020"]
[Site "Prague"]
[Date "2020.03.06"]
[Round "1.37"]
[White "Korenek, Frantisek"]
[Black "Pekarek, Ales"]
[Result "0-1"]
[ECO "B08"]
[WhiteElo "1952"]
[BlackElo "2274"]
[Annotator "ChessBase"]
[PlyCount "108"]
[EventDate "2020.03.06"]
[EventType "team-tourn"]
[EventCountry "CZE"]
[SourceTitle "playchess.com"]
[Source "ChessBase"]
[SourceQuality "1"]
[TimeControl "40/5400+30:1800+30"]

1. e4 {[%emt 0:00:00]} d6 {[%emt 0:02:11]} 2. d4 {[%emt 0:00:00]} Nf6 {[%emt 0:00:04]} 3. Nc3 {[%emt 0:00:00]} g6 {[%emt 0:00:04]} 4. Nf3 {[%emt 0:00:26]} Bg7 {[%emt 0:00:10]} 5. Be2 {[%emt 0:00:10]} O-O {[%emt 0:00:27]} 6. O-O {[%emt 0:00:09]} a6 {[%emt 0:02:58]} 7. a4 {[%emt 0:00:29]} Nc6 {[%emt 0:01:25]} 8. h3 {[%emt 0:01:38]} e5 {[%emt 0:04:32]} 9. d5 {[%emt 0:00:13]} Ne7 {[%emt 0:00:20]} 10. Be3 {[%emt 0:00:25]} Kh8 {[%emt 0:02:57]} 11. Ne1 {[%emt 0:07:12]} Nd7 {[%emt 0:03:19]} 12. f4 {[%emt 0:02:40]} f5 {[%emt 0:02:33]} 13. fxe5 {[%emt 0:02:12]} Nxe5 {[%emt 0:00:47]} 14. Nf3 {[%emt 0:04:32]} f4 {[%emt 0:04:34]} 15. Nxe5 {[%emt 0:03:30]} Bxe5 {[%emt 0:02:23]} 16. Bd4 {[%emt 0:00:09]} Ng8 {[%emt 0:00:31]} 17. Bxe5+ {[%emt 0:00:54]} dxe5 {[%emt 0:00:03]} 18. Bg4 {[%emt 0:00:33]} Bxg4 {[%emt 0:01:01]} 19. Qxg4 {[%emt 0:00:41]} Qd6 {[%emt 0:02:33]} 20. Kh2 {[%emt 0:02:34]} Nf6 {[%emt 0:03:32]} 21. Qf3 {[%emt 0:00:24]} g5 {[%emt 0:01:51]} 22. g4 {[%emt 0:03:07]} Rg8 {[%emt 0:02:17]} 23. Rg1 {[%emt 0:04:56]} Qc5 {[%emt 0:01:28]} 24. Rg2 {[%emt 0:00:28]} b5 {[%emt 0:01:12]} 25. Qd3 {[%emt 0:05:01]} b4 {[%emt 0:02:27]} 26. Nd1 {[%emt 0:01:52]} Rgd8 {[%emt 0:09:07]} 27. c4 {[%emt 0:02:14]} bxc3 {[%emt 0:05:18]} 28. Nxc3 {[%emt 0:04:11]} Qd4 {[%emt 0:02:26]} 29. Rd1 {[%emt 0:00:37]} Qxd3 {[%emt 0:00:18]} 30. Rxd3 {[%emt 0:00:06]} Rab8 {[%emt 0:00:15]} 31. Re2 {[%emt 0:02:19]} Rb4 {[%emt 0:03:14]} 32. Kg2 {[%emt 0:00:18]} Ne8 {[%emt 0:02:48]} 33. Kf3 {[%emt 0:01:20]} Rdb8 {[%emt 0:00:56]} 34. d6 {[%emt 0:03:39]} cxd6 {[%emt 0:05:00]} 35. Nd5 {[%emt 0:00:37]} Rb3 {[%emt 0:09:25]} 36. Rc3 {[%emt 0:00:08]} Ng7 {[%emt 0:02:08]} 37. Nc7 {[%emt 0:04:14]} Rxb2 {[%emt 0:01:55]} 38. Nxa6 {[%emt 0:00:29]} Ne6 {[%emt 0:02:40]} 39. Nxb8 {[%emt 0:05:27]} Nd4+ {[%emt 0:00:53]} 40. Kf2 {[%emt 0:00:00]} Rxe2+ {[%emt 0:00:00]} 41. Kf1 {[%emt 0:00:18]} Ra2 {[%emt 0:06:48]} 42. Nd7 {[%emt 0:03:06]} Rxa4 {[%emt 0:02:09]} 43. Nf6 {[%emt 0:00:13]} Kg7 {[%emt 0:09:46]} 44. Ne8+ {[%emt 0:00:08]} Kg6 {[%emt 0:03:33]} 45. Nxd6 {[%emt 0:00:07]} h5 {[%emt 0:00:34]} 46. Nf5 {[%emt 0:01:40]} hxg4 {[%emt 0:01:06]} 47. hxg4 {[%emt 0:00:12]} Kf6 {[%emt 0:01:25]} 48. Rh3 {[%emt 0:02:40]} Nxf5 {[%emt 0:05:38]} 49. exf5 {[%emt 0:00:06]} e4 {[%emt 0:00:12]} 50. Rb3 {[%emt 0:00:46]} Ra1+ {[%emt 0:00:53]} 51. Kf2 {[%emt 0:00:20]} Ra2+ {[%emt 0:00:23]} 52. Kf1 {[%emt 0:00:33]} f3 {[%emt 0:00:26]} 53. Re3 {[%emt 0:02:03]} Ke5 {[%emt 0:00:20]} 54. f6 {[%emt 0:00:49]} Kf4 0-1

[Event "WSTCC-50 2020"]
[Site "Prague"]
[Date "2020.03.06"]
[Round "1.38"]
[White "Pastircak, Milan"]
[Black "Hejda, Antonin"]
[Result "1-0"]
[ECO "D02"]
[WhiteElo "2277"]
[BlackElo "1907"]
[Annotator "ChessBase"]
[PlyCount "51"]
[EventDate "2020.03.06"]
[EventType "team-tourn"]
[EventCountry "CZE"]
[SourceTitle "playchess.com"]
[Source "ChessBase"]
[SourceQuality "1"]
[TimeControl "40/5400+30:1800+30"]

1. Nf3 {[%emt 0:00:00]} Nf6 {[%emt 0:00:00]} 2. d4 {[%emt 0:00:00]} d5 {[%emt 0:00:00]} 3. Bf4 {[%emt 0:00:02]} Bg4 {[%emt 0:00:59]} 4. Ne5 {[%emt 0:00:42]} Bh5 {[%emt 0:00:24]} 5. c4 {[%emt 0:00:40]} Nbd7 {[%emt 0:00:48]} 6. Nc3 {[%emt 0:04:57]} c6 {[%emt 0:07:58]} 7. Qb3 {[%emt 0:03:29]} Qb6 {[%emt 0:01:03]} 8. Nxd7 {[%emt 0:07:43]} Nxd7 {[%emt 0:00:50]} 9. cxd5 {[%emt 0:04:39]} Qxb3 {[%emt 0:07:04]} 10. axb3 {[%emt 0:00:02]} Nb6 {[%emt 0:00:34]} 11. dxc6 {[%emt 0:05:07]} bxc6 {[%emt 0:00:08]} 12. e4 {[%emt 0:00:23]} e6 {[%emt 0:03:19]} 13. Ba6 {[%emt 0:08:49]} Rd8 {[%emt 0:02:33]} 14. Bb7 {[%emt 0:02:52]} Rxd4 {[%emt 0:01:03]} 15. Bxc6+ {[%emt 0:00:34]} Nd7 {[%emt 0:00:33]} 16. Rxa7 {[%emt 0:07:47]} Bb4 {[%emt 0:00:35]} 17. O-O {[%emt 0:00:26]} Ke7 {[%emt 0:01:47]} 18. Nb5 {[%emt 0:10:01]} Rd3 {[%emt 0:01:22]} 19. Bd6+ {[%emt 0:02:33]} Rxd6 {[%emt 0:09:58]} 20. Nxd6 {[%emt 0:00:02]} Kxd6 {[%emt 0:00:02]} 21. Bxd7 {[%emt 0:00:12]} Ke5 {[%emt 0:00:19]} 22. Rb7 {[%emt 0:05:15]} Bc5 {[%emt 0:01:30]} 23. Rc1 {[%emt 0:03:54]} Bd4 {[%emt 0:04:13]} 24. Rb5+ {[%emt 0:00:28]} Kd6 {[%emt 0:00:09]} 25. Rxh5 {[%emt 0:00:08]} Kxd7 {[%emt 0:00:20]} 26. Rd1 {[%emt 0:00:12]} 1-0